bitfinex/quotes_BTCUSD_20251110
["timestamp","ask_amount","ask_price","bid_price","bid_amount"]
[1762787379459,0.022,105370.0,105360.0,0.18982536]
[1762787379683,0.02,105370.0,105360.0,0.18982536]
[1762787379898,0.02,105370.0,105350.0,0.68447897]
[1762787380119,0.09822719,105380.0,105360.0,0.30146536]
[1762787380120,0.05393719,105380.0,105360.0,0.30146536]
[1762787380323,0.06265219,105380.0,105370.0,0.02469]
[1762787380544,0.12694219,105380.0,105360.0,0.28370843]
[1762787380784,0.02,105370.0,105360.0,0.25815482]
[1762787381707,0.02,105370.0,105360.0,0.43806195]
[1762787381915,0.02,105370.0,105360.0,0.62788731]
[1762787382140,0.05393719,105380.0,105360.0,0.69588731]
[1762787382351,0.02903877,105380.0,105370.0,0.23344734]
[1762787382572,0.00032719,105380.0,105370.0,0.67117929]
[1762787382782,0.00032719,105380.0,105370.0,0.69673294]
[1762787383007,0.00032719,105380.0,105370.0,0.82675442]
[1762787383212,0.00032719,105380.0,105370.0,0.92485615]
[1762787384033,0.00032719,105380.0,105370.0,0.95892769]
[1762787384244,0.00032719,105380.0,105370.0,0.92485615]
[1762787384444,0.00032719,105380.0,105370.0,0.95892769]
[1762787384681,0.00232719,105380.0,105370.0,0.98448135]
[1762787384894,0.00232719,105380.0,105370.0,0.95040981]
[1762787385296,0.00032719,105380.0,105370.0,0.98538742]
[1762787385707,0.00032719,105380.0,105370.0,0.98638742]
[1762787385945,0.01772869,105380.0,105370.0,0.98638742]
[1762787386191,0.0004,105400.0,105390.0,0.18977132]
[1762787386425,0.01780419,105400.0,105390.0,0.85546322]
[1762787386656,0.01780419,105400.0,105390.0,0.92346322]
[1762787386931,0.01280419,105400.0,105390.0,0.92346322]
[1762787387146,0.01280419,105400.0,105390.0,0.89799149]
[1762787387353,0.01280419,105400.0,105390.0,1.30811723]
[1762787387558,0.0002,105420.0,105410.0,0.18973531]
[1762787387759,0.00029102,105420.0,105410.0,1.1488945]
[1762787387975,0.00029102,105420.0,105410.0,1.27629771]
[1762787388157,0.00029102,105420.0,105410.0,1.24235302]
[1762787388376,1.02e-06,105420.0,105410.0,1.31247605]
[1762787388537,1.02e-06,105420.0,105410.0,1.31244329]
[1762787389344,1.02e-06,105420.0,105410.0,1.22534398]
[1762787389749,0.00100102,105420.0,105410.0,1.28126101]
[1762787390132,0.00100102,105420.0,105410.0,1.23034398]
[1762787390835,0.00100102,105420.0,105410.0,0.71803858]
[1762787391073,0.00100102,105420.0,105410.0,0.93353706]
[1762787391279,0.00100102,105420.0,105410.0,0.83648874]
[1762787391759,0.00100102,105420.0,105410.0,0.83548874]
[1762787391965,0.00100102,105420.0,105410.0,0.83848874]
[1762787392170,1.02e-06,105420.0,105410.0,0.83348874]
[1762787392383,1.02e-06,105420.0,105410.0,0.92859047]
[1762787392541,1.02e-06,105420.0,105410.0,0.93159047]
[1762787392942,1.02e-06,105420.0,105410.0,0.83348874]
[1762787393140,1.02e-06,105420.0,105410.0,0.33373531]
[1762787393545,1.02e-06,105420.0,105410.0,0.83348874]
[1762787393779,1.02e-06,105420.0,105410.0,0.83548874]
[1762787394191,1.02e-06,105420.0,105410.0,0.83348874]
[1762787394625,1.02e-06,105420.0,105410.0,0.93259047]
[1762787394832,1.02e-06,105420.0,105410.0,0.64175343]
[1762787395039,1.02e-06,105420.0,105410.0,0.142]
[1762787395248,0.02000102,105420.0,105410.0,0.076]
[1762787395450,0.02000102,105420.0,105410.0,0.33388531]
[1762787395665,1.02e-06,105420.0,105410.0,0.83363874]
[1762787396210,1.02e-06,105420.0,105410.0,0.83163874]
[1762787396761,1.02e-06,105420.0,105410.0,0.83263874]
[1762787396962,1.02e-06,105420.0,105410.0,0.14315]
[1762787397158,1.02e-06,105420.0,105410.0,0.83263874]
[1762787397357,1.02e-06,105420.0,105410.0,0.83163874]
[1762787397619,1.02e-06,105420.0,105410.0,0.90640186]
[1762787398134,1.02e-06,105420.0,105410.0,0.64090343]
[1762787398302,1.02e-06,105420.0,105410.0,0.83363874]
[1762787398496,1.02e-06,105420.0,105410.0,0.64390343]
[1762787398726,1.02e-06,105420.0,105410.0,0.14415]
[1762787398930,0.01734447,105420.0,105410.0,0.83363874]
[1762787399069,0.01734447,105420.0,105410.0,0.93174047]
[1762787401081,0.01734447,105420.0,105410.0,1.25474047]
[1762787401287,0.01734447,105420.0,105410.0,1.28013575]
[1762787401491,0.01734447,105420.0,105410.0,0.83363874]
[1762787403129,0.01734447,105420.0,105410.0,1.19282102]
[1762787403329,4.47e-06,105420.0,105410.0,1.25212429]
[1762787403678,4.47e-06,105420.0,105410.0,1.236729]
[1762787403904,4.47e-06,105420.0,105410.0,1.28764603]
[1762787404103,4.47e-06,105420.0,105410.0,1.38574776]
[1762787404306,4.47e-06,105420.0,105410.0,1.34183978]
[1762787404483,4.47e-06,105420.0,105410.0,1.35183977]
[1762787405124,4.47e-06,105420.0,105410.0,1.8515932]
[1762787405300,4.47e-06,105420.0,105410.0,1.86918408]
[1762787405776,4.47e-06,105420.0,105410.0,1.36743065]
[1762787405986,4.47e-06,105420.0,105410.0,1.35743066]
[1762787406192,4.47e-06,105420.0,105410.0,1.36943065]
[1762787406601,0.00211593,105440.0,105430.0,0.18969932]
[1762787406801,0.00259509,105440.0,105430.0,0.88707152]
[1762787407018,0.00259509,105440.0,105430.0,0.95447152]
[1762787407921,0.00259509,105440.0,105430.0,1.02389158]
[1762787409263,0.00259509,105440.0,105430.0,1.0004907]
[1762787409491,0.00259509,105440.0,105430.0,1.35091362]
[1762787409692,0.00259509,105440.0,105430.0,1.31704577]
[1762787410305,0.00259509,105440.0,105430.0,1.35091362]
[1762787410816,0.01128836,105440.0,105430.0,1.31704577]
[1762787411017,0.00259509,105440.0,105430.0,1.35091362]
[1762787411234,0.00259509,105440.0,105430.0,0.82573727]
[1762787411446,0.00259509,105440.0,105430.0,1.35094303]
[1762787411652,0.01129503,105440.0,105430.0,0.76700367]
[1762787411859,0.01129503,105440.0,105430.0,0.85341508]
[1762787412712,0.01129503,105440.0,105430.0,1.17641508]
[1762787412926,0.01129503,105440.0,105430.0,1.23563237]
[1762787413126,0.01129503,105440.0,105430.0,1.1848306]
[1762787413344,0.01129503,105440.0,105430.0,1.3337341]
[1762787413863,0.01129503,105440.0,105430.0,1.1848306]
[1762787414055,0.01129503,105440.0,105430.0,1.21032198]
[1762787414257,0.01129503,105440.0,105430.0,1.23563237]
[1762787414617,0.01129503,105440.0,105430.0,1.1848306]
[1762787415019,0.01129503,105440.0,105430.0,0.99513128]
[1762787415223,0.01129503,105440.0,105430.0,0.09661766]
[1762787415224,0.02872658,105440.0,105430.0,0.09661766]
[1762787415422,0.04872658,105440.0,105430.0,0.09661766]
[1762787415780,0.04872658,105440.0,105430.0,0.07111]
[1762787416200,0.04872658,105440.0,105430.0,0.02886]
[1762787416405,0.04872658,105440.0,105430.0,0.82596275]
[1762787416406,0.02872658,105440.0,105430.0,0.82596275]
[1762787416611,0.02872658,105440.0,105430.0,0.85147041]
[1762787416817,0.02872658,105440.0,105430.0,0.85247041]
[1762787417202,0.02872658,105440.0,105430.0,0.8588306]
[1762787417409,0.02872658,105440.0,105430.0,0.35907717]
[1762787417630,0.02872658,105440.0,105430.0,0.8598306]
[1762787418001,0.02872658,105440.0,105430.0,0.8588306]
[1762787418409,0.02872658,105440.0,105430.0,0.95693233]
[1762787418777,0.02872658,105440.0,105430.0,0.97386625]
[1762787419178,0.02872658,105440.0,105430.0,1.29686625]
[1762787419783,0.02872658,105440.0,105430.0,1.29786625]
[1762787419994,0.02872658,105440.0,105430.0,1.36861951]
[1762787420205,0.02872658,105440.0,105430.0,1.26951778]
[1762787420428,0.02872658,105440.0,105430.0,1.30355826]
[1762787420634,0.02872658,105440.0,105430.0,1.30555826]
[1762787421442,0.02872658,105440.0,105430.0,1.30755826]
[1762787422801,0.02872658,105440.0,105430.0,0.80780483]
[1762787423026,0.02872658,105440.0,105430.0,1.40565999]
[1762787424254,0.02872658,105440.0,105430.0,1.30755826]
[1762787425367,0.02872658,105440.0,105430.0,1.27351778]
[1762787426190,0.02872658,105440.0,105430.0,0.21821049]
[1762787426355,0.02872658,105440.0,105430.0,0.13334]
[1762787427078,0.02872658,105440.0,105430.0,0.13134]
[1762787427417,0.02872658,105440.0,105430.0,0.13234]
[1762787427731,0.02872658,105440.0,105430.0,0.13034]
[1762787427939,0.02872658,105440.0,105430.0,0.32003932]
[1762787428169,0.02872658,105440.0,105430.0,0.63009343]
[1762787428400,0.02872658,105440.0,105430.0,0.63109343]
[1762787428812,0.02872658,105440.0,105430.0,0.82079275]
[1762787429238,0.02872658,105440.0,105430.0,0.9529632]
[1762787429447,0.02872658,105440.0,105430.0,1.00376497]
[1762787430103,0.02872658,105440.0,105430.0,0.18214177]
[1762787430323,0.02872658,105440.0,105430.0,0.82079275]
[1762787430544,0.02872658,105440.0,105430.0,0.87194477]
[1762787430758,0.02872658,105440.0,105430.0,0.88930066]
[1762787431021,0.02872658,105440.0,105430.0,0.82079275]
[1762787431227,0.02872658,105440.0,105430.0,0.91889448]
[1762787431444,0.02872658,105440.0,105430.0,0.98740239]
[1762787432079,0.02872658,105440.0,105430.0,1.05719946]
[1762787432292,0.02872658,105440.0,105430.0,0.55744603]
[1762787432511,0.02872658,105440.0,105430.0,1.05719946]
[1762787433805,0.02872658,105440.0,105430.0,0.55744603]
[1762787434026,0.02872658,105440.0,105430.0,1.05719946]
[1762787434892,0.02872658,105440.0,105430.0,0.32103932]
[1762787435103,0.02872658,105440.0,105430.0,0.37221466]
[1762787435545,0.02872658,105440.0,105430.0,0.40633348]
[1762787435965,0.02872658,105440.0,105430.0,0.21663416]
[1762787436192,0.02872658,105440.0,105430.0,0.40633348]
[1762787436699,0.08908658,105440.0,105430.0,0.11215416]
[1762787436917,0.08908658,105440.0,105430.0,0.05245175]
[1762787437154,0.04872658,105440.0,105430.0,0.15691175]
[1762787437373,0.04872658,105440.0,105430.0,0.09551175]
[1762787437617,0.04872658,105440.0,105430.0,0.09451175]
[1762787437861,0.04872658,105440.0,105430.0,0.37872989]
[1762787438102,0.02872658,105440.0,105430.0,0.21461416]
[1762787438330,0.04872658,105440.0,105430.0,0.12762557]
[1762787439263,0.04872658,105440.0,105430.0,0.09450675]
[1762787439729,0.04872658,105440.0,105430.0,0.15590675]
[1762787439976,0.04872658,105440.0,105430.0,0.40218602]
[1762787440191,0.04872658,105440.0,105430.0,0.38072489]
[1762787440879,0.02872658,105440.0,105430.0,0.38072489]
[1762787441100,0.02872658,105440.0,105430.0,0.38072212]
[1762787441813,0.02002664,105440.0,105430.0,0.71252723]
[1762787442039,0.02002664,105440.0,105430.0,1.30499094]
[1762787442489,0.02002664,105440.0,105430.0,0.48223751]
[1762787442735,0.02002664,105440.0,105430.0,0.37218343]
[1762787442963,0.02002664,105440.0,105430.0,0.87193686]
[1762787443196,0.02002664,105440.0,105430.0,0.75821281]
[1762787443621,0.02002664,105440.0,105430.0,0.18248505]
[1762787443873,0.02002664,105440.0,105430.0,0.37218437]
[1762787444077,0.02002664,105440.0,105430.0,0.74086995]
[1762787444489,0.02002664,105440.0,105430.0,0.6897049]
[1762787445432,0.02002664,105440.0,105430.0,1.38139048]
[1762787445659,0.00259509,105440.0,105430.0,1.44989839]
[1762787445864,0.00259509,105440.0,105430.0,1.38139048]
[1762787447127,0.00259509,105440.0,105430.0,0.002]
[1762787447128,0.10741509,105440.0,105430.0,0.002]
[1762787447337,0.21155544,105440.0,105430.0,0.002]
[1762787447560,0.18981623,105440.0,105430.0,0.002]
[1762787448160,0.08917395,105440.0,105430.0,0.02073]
[1762787448460,0.08917395,105440.0,105430.0,0.01973]
[1762787448461,0.04881395,105440.0,105430.0,0.01973]
[1762787448935,0.04981395,105440.0,105430.0,0.01873]
[1762787449107,0.04981395,105440.0,105430.0,0.06179]
[1762787449301,0.04881395,105440.0,105430.0,0.15934904]
[1762787449635,0.04881395,105440.0,105430.0,0.18288928]
[1762787449849,0.04981395,105440.0,105430.0,0.08737731]
[1762787450066,0.04981419,105440.0,105430.0,0.51746289]
[1762787450315,0.04981419,105440.0,105430.0,1.03868687]
[1762787450316,0.02107606,105440.0,105430.0,1.03868687]
[1762787450519,0.00359509,105440.0,105430.0,1.07279315]
[1762787450722,0.00359509,105440.0,105430.0,1.17089488]
[1762787451563,0.00259509,105440.0,105430.0,1.17089488]
[1762787451767,0.00259509,105440.0,105430.0,1.07279315]
[1762787452010,0.00359509,105440.0,105430.0,1.07279315]
[1762787452427,0.00259509,105440.0,105430.0,1.07279315]
[1762787453009,0.00259509,105440.0,105430.0,0.70610757]
[1762787453168,0.00259509,105440.0,105430.0,1.07479315]
[1762787453376,0.00259509,105440.0,105430.0,0.88509383]
[1762787453732,0.00259509,105440.0,105430.0,0.17832453]
[1762787453924,0.00259509,105440.0,105430.0,0.21241653]
[1762787453925,0.04007067,105440.0,105430.0,0.21241653]
[1762787454772,0.04880742,105440.0,105430.0,0.18485213]
[1762787455023,0.04880742,105440.0,105430.0,0.18285213]
[1762787455324,0.04880742,105440.0,105430.0,0.18485213]
[1762787455566,0.04880742,105440.0,105430.0,0.45399034]
[1762787455738,0.02007067,105440.0,105430.0,0.76880143]
[1762787456863,0.02007067,105440.0,105430.0,0.21041653]
[1762787457209,0.04007067,105440.0,105430.0,0.159282]
[1762787457414,0.04007067,105440.0,105430.0,0.34898132]
[1762787457620,0.04007067,105440.0,105430.0,0.159282]
[1762787458184,0.02007067,105440.0,105430.0,0.159282]
[1762787458387,0.04007067,105440.0,105430.0,0.159282]
[1762787458581,0.04007067,105440.0,105430.0,0.34898132]
[1762787459222,0.02007067,105440.0,105430.0,0.86465278]
[1762787460342,0.02007067,105440.0,105430.0,0.76880143]
[1762787460964,0.02005739,105440.0,105430.0,0.76880143]
[1762787461502,0.02005739,105440.0,105430.0,0.73470943]
[1762787462493,0.02005739,105440.0,105430.0,0.40011758]
[1762787462958,0.00259509,105440.0,105430.0,1.05770943]
[1762787463175,0.00259509,105440.0,105430.0,1.17289488]
[1762787464023,0.00259509,105440.0,105430.0,1.14525177]
[1762787464230,0.00259509,105440.0,105430.0,0.54501159]
[1762787464436,0.020062,105440.0,105430.0,0.54501159]
[1762787464644,0.020062,105440.0,105430.0,0.73471091]
[1762787464855,0.020062,105440.0,105430.0,0.76880471]
[1762787465501,0.020062,105440.0,105430.0,0.86690644]
[1762787465708,0.020062,105440.0,105430.0,0.76880471]
[1762787467835,0.020062,105440.0,105430.0,0.73471091]
[1762787468266,0.020062,105440.0,105430.0,0.54501159]
[1762787468477,0.08848441,105440.0,105430.0,0.05482643]
[1762787468695,0.08848441,105440.0,105430.0,0.04630434]
[1762787468908,0.14680441,105440.0,105430.0,0.02757434]
[1762787469366,0.50598669,105440.0,105430.0,0.002]
[1762787471265,0.50598669,105440.0,105430.0,0.001]
[1762787471510,0.50598669,105440.0,105400.0,0.22860088]
[1762787471758,0.02,105410.0,105400.0,0.22860088]
[1762787471986,0.03746691,105410.0,105400.0,0.22860088]
[1762787472218,0.03746691,105410.0,105400.0,0.12756]
[1762787472451,0.03746691,105410.0,105400.0,0.02936]
[1762787472452,0.16463691,105410.0,105400.0,0.02936]
[1762787472904,0.10631691,105410.0,105400.0,0.02936]
[1762787473136,0.10631691,105410.0,105380.0,0.22388571]
[1762787473137,0.02,105400.0,105380.0,0.22388571]
[1762787473384,0.03746691,105400.0,105390.0,0.6424469]
[1762787473613,0.04916,105410.0,105390.0,0.69105546]
[1762787473846,0.08094561,105410.0,105390.0,0.06403]
[1762787474072,0.02,105400.0,105390.0,0.06403]
[1762787474312,0.02,105400.0,105390.0,0.06412102]
[1762787474539,0.15445955,105400.0,105390.0,9.102e-05]
[1762787474756,0.07710134,105400.0,105390.0,0.02500102]
[1762787475909,0.07710134,105400.0,105390.0,0.02800102]
[1762787476128,0.13542134,105400.0,105390.0,0.00309102]
[1762787476357,0.15445955,105400.0,105390.0,0.00309102]
[1762787476589,0.14488669,105400.0,105390.0,0.00309102]
[1762787476814,0.13542134,105400.0,105390.0,0.00309102]
[1762787478167,0.13542134,105400.0,105390.0,0.00109102]
[1762787478618,0.14910387,105400.0,105390.0,0.00109102]
[1762787478846,0.17365712,105400.0,105390.0,0.00109102]
[1762787479062,0.5128394,105400.0,105390.0,0.00109102]
[1762787479289,0.52380118,105400.0,105390.0,9.102e-05]
[1762787480014,0.7135545,105400.0,105390.0,9.102e-05]
[1762787480248,0.78658998,105400.0,105390.0,9.102e-05]
[1762787480472,0.76515991,105400.0,105390.0,9.102e-05]
[1762787480694,0.7751599,105400.0,105390.0,9.102e-05]
[1762787480923,0.38918227,105380.0,105370.0,0.00033525]
[1762787481137,0.48413615,105380.0,105370.0,0.00033525]
[1762787481360,0.54245615,105380.0,105370.0,0.00033525]
[1762787481983,0.54243444,105380.0,105370.0,0.00033525]
[1762787482202,0.50376362,105380.0,105370.0,0.00033525]
[1762787482447,0.53542845,105380.0,105370.0,0.00033525]
[1762787482675,0.36207616,105380.0,105370.0,0.11577525]
[1762787482882,0.02041134,105380.0,105370.0,0.6932489]
[1762787483116,0.02041134,105380.0,105370.0,0.48446083]
[1762787483369,0.02041134,105380.0,105370.0,0.11577525]
[1762787483592,0.02041134,105380.0,105370.0,0.00033525]
[1762787483593,0.16086955,105380.0,105370.0,0.00033525]
[1762787483803,0.17801362,105380.0,105370.0,0.00033525]
[1762787484656,0.17501362,105380.0,105370.0,0.00033525]
[1762787484867,0.17501362,105380.0,105370.0,0.00133525]
[1762787485082,0.53771307,105380.0,105370.0,0.00133525]
[1762787485292,0.48867487,105380.0,105370.0,0.00133525]
[1762787485512,0.49801362,105380.0,105370.0,0.00133525]
[1762787485947,0.46283134,105380.0,105370.0,0.00133525]
[1762787486178,0.46283134,105380.0,105370.0,0.00033525]
[1762787486609,0.49901362,105380.0,105370.0,0.00033525]
[1762787487306,0.49901362,105380.0,105370.0,0.61549817]
[1762787487307,0.01841134,105380.0,105370.0,0.61549817]
[1762787487536,0.03841134,105380.0,105370.0,0.67142817]
[1762787487783,0.03841134,105380.0,105370.0,0.42569083]
[1762787487996,0.03841134,105380.0,105370.0,0.48162083]
[1762787488204,0.03841134,105380.0,105370.0,0.05700525]
[1762787488205,0.03741134,105380.0,105370.0,0.05700525]
[1762787488416,0.04720247,105380.0,105370.0,0.01882525]
[1762787488626,0.08812247,105380.0,105370.0,0.01982525]
[1762787488863,0.14862247,105380.0,105370.0,0.00133525]
[1762787489090,0.18480475,105380.0,105370.0,0.00133525]
[1762787489736,0.18480475,105380.0,105370.0,0.00033525]
[1762787490378,0.17501362,105380.0,105370.0,0.00033525]
[1762787490587,0.15501362,105380.0,105370.0,0.00033525]
[1762787490804,0.19405183,105380.0,105370.0,0.00033525]
[1762787491017,0.2027061,105380.0,105370.0,0.00033525]
[1762787491248,0.18466895,105380.0,105370.0,0.00033525]
[1762787491886,0.17601362,105380.0,105370.0,0.00033525]
[1762787493844,0.18467662,105380.0,105370.0,0.00033525]
[1762787495162,0.50767662,105380.0,105370.0,0.00033525]
[1762787495372,0.51767661,105380.0,105370.0,0.00033525]
[1762787495590,0.50894056,105380.0,105370.0,0.00033525]
[1762787496263,0.48894056,105380.0,105370.0,0.00033525]
[1762787496485,0.51761406,105380.0,105370.0,0.00033525]
[1762787497147,0.50761407,105380.0,105370.0,0.00033525]
[1762787497333,0.50661407,105380.0,105370.0,0.00033525]
[1762787497827,0.50861407,105380.0,105370.0,0.00033525]
[1762787498043,0.50862024,105380.0,105370.0,0.00033525]
[1762787499368,0.49862024,105380.0,105370.0,0.00033525]
[1762787500035,0.02,105340.0,105330.0,0.02936]
[1762787500256,0.03733829,105340.0,105330.0,0.02945103]
[1762787500478,0.01733829,105340.0,105330.0,0.68331509]
[1762787500697,0.01733829,105340.0,105330.0,0.69842358]
[1762787500913,0.01733829,105340.0,105330.0,0.75435358]
[1762787501128,0.01733829,105340.0,105330.0,0.71716765]
[1762787501394,0.01733829,105340.0,105330.0,0.71816765]
[1762787502043,0.01833829,105340.0,105330.0,0.72316765]
[1762787502710,0.01833829,105340.0,105330.0,0.72216765]
[1762787502926,0.01833829,105340.0,105330.0,0.72616765]
[1762787503145,0.01833829,105340.0,105330.0,0.35748207]
[1762787503365,0.01833829,105340.0,105330.0,0.72616765]
[1762787503588,0.01833829,105340.0,105330.0,0.35748207]
[1762787504040,0.01833829,105340.0,105330.0,0.72616765]
[1762787504265,0.01833829,105340.0,105330.0,0.35748207]
[1762787504485,0.01833829,105340.0,105330.0,0.53628823]
[1762787504698,0.01833829,105340.0,105330.0,0.13350622]
[1762787504913,0.02508012,105340.0,105330.0,0.07757622]
[1762787505148,0.04508012,105340.0,105330.0,0.03939622]
[1762787505374,0.03833829,105340.0,105330.0,0.03939622]
[1762787505613,0.03833829,105340.0,105330.0,0.82367745]
[1762787505810,0.03733829,105340.0,105330.0,0.81867745]
[1762787506051,0.03733829,105340.0,105330.0,0.31438564]
[1762787506269,0.03733829,105340.0,105330.0,0.07157622]
[1762787506474,0.13875829,105340.0,105330.0,0.00103622]
[1762787506874,0.13875829,105340.0,105330.0,0.00403622]
[1762787506875,0.47602997,105340.0,105330.0,0.00403622]
[1762787507127,0.46175829,105340.0,105330.0,0.00403622]
[1762787507338,0.46275829,105340.0,105330.0,0.00803622]
[1762787507781,0.68880197,105340.0,105330.0,0.00503622]
[1762787508003,0.02,105320.0,105310.0,0.0004]
[1762787508219,0.38014829,105320.0,105310.0,0.00054368]
[1762787508439,0.03741495,105320.0,105310.0,0.03872368]
[1762787508658,0.13883495,105320.0,105310.0,0.00054368]
[1762787509332,0.03741495,105320.0,105310.0,0.00054368]
[1762787509547,0.03741495,105320.0,105310.0,0.28456916]
[1762787509767,0.03741495,105320.0,105310.0,0.09465368]
[1762787509982,0.03741495,105320.0,105310.0,0.03872368]
[1762787510175,0.03741495,105320.0,105310.0,0.00054368]
[1762787510446,0.07833495,105320.0,105310.0,0.00054368]
[1762787510879,0.03741495,105320.0,105310.0,0.00254368]
[1762787511093,0.13883495,105320.0,105310.0,0.00254368]
[1762787511342,0.11883495,105320.0,105310.0,0.00454368]
[1762787511549,0.05833495,105320.0,105310.0,0.00454368]
[1762787511758,0.07833495,105320.0,105310.0,0.00454368]
[1762787512392,0.13687495,105320.0,105310.0,0.00454368]
[1762787512839,0.03741495,105320.0,105310.0,0.04050368]
[1762787513079,0.01741495,105320.0,105310.0,0.80891251]
[1762787513342,0.01741495,105320.0,105310.0,0.28962916]
[1762787513583,0.01741495,105320.0,105310.0,0.79039374]
[1762787516130,0.01741495,105320.0,105310.0,0.61310193]
[1762787516977,0.01741495,105320.0,105310.0,1.11339374]
[1762787517387,0.01741495,105320.0,105310.0,0.42318645]
[1762787517599,0.01741495,105320.0,105310.0,0.61310193]
[1762787518530,0.01741495,105320.0,105310.0,1.11339374]
[1762787519232,0.01741495,105320.0,105310.0,0.61310193]
[1762787519660,0.01741495,105320.0,105310.0,1.11339374]
[1762787520091,0.01741495,105320.0,105310.0,1.2455919]
[1762787520788,0.02,105360.0,105340.0,0.19933329]
[1762787521003,0.02,105360.0,105340.0,0.02459]
[1762787521004,0.02736,105350.0,105340.0,0.02459]
[1762787521230,0.12279,105350.0,105330.0,0.02459]
[1762787521443,0.05677,105340.0,105330.0,0.02459]
[1762787521874,0.02,105340.0,105330.0,0.02459]
[1762787522314,0.11543,105340.0,105320.0,0.02482636]
[1762787522525,0.02,105330.0,105320.0,0.02482636]
[1762787522939,0.02,105330.0,105320.0,0.25420381]
[1762787523163,0.02,105330.0,105320.0,0.31209381]
[1762787523852,0.02,105330.0,105320.0,0.81238562]
[1762787524045,0.02,105340.0,105320.0,0.82188049]
[1762787524266,0.02,105340.0,105330.0,0.02459]
[1762787524698,0.02,105340.0,105330.0,0.06407]
[1762787525118,0.02,105340.0,105330.0,0.34600767]
[1762787525562,0.02,105340.0,105330.0,0.81513123]
[1762787525772,0.02,105360.0,105340.0,0.19935314]
[1762787525983,0.02,105360.0,105340.0,0.75753495]
[1762787525984,0.02870598,105360.0,105340.0,0.75753495]
[1762787526197,0.02870598,105360.0,105350.0,0.11586]
[1762787526616,0.02870598,105360.0,105350.0,0.30570337]
[1762787526617,0.00870598,105360.0,105350.0,0.30570337]
[1762787526861,0.02,105370.0,105350.0,0.85640371]
[1762787527078,0.02870632,105370.0,105360.0,0.28719536]
[1762787527282,0.02,105370.0,105360.0,0.28719536]
[1762787527673,0.04736,105370.0,105360.0,0.03948]
[1762787527879,0.04736,105370.0,105350.0,0.70862327]
[1762787528089,0.05606435,105370.0,105350.0,0.26622146]
[1762787528528,0.04736,105370.0,105350.0,0.26622146]
[1762787528730,0.04736,105370.0,105360.0,0.001]
[1762787529151,0.04736,105370.0,105350.0,0.76651498]
[1762787529352,0.04736,105370.0,105350.0,0.57667181]
[1762787529558,0.04736,105370.0,105350.0,0.07738]
[1762787529768,0.04736,105370.0,105350.0,0.15838632]
[1762787529977,0.04736,105370.0,105350.0,0.34822831]
[1762787530188,0.04736,105370.0,105360.0,0.03948]
[1762787530400,0.02,105370.0,105360.0,0.22930536]
[1762787530613,0.08580009,105380.0,105360.0,0.78748717]
[1762787530826,0.11464517,105380.0,105370.0,0.05797]
[1762787531038,0.11464517,105380.0,105370.0,0.30566734]
[1762787531246,0.11464517,105380.0,105370.0,0.80595915]
[1762787531247,0.00014362,105380.0,105370.0,0.80595915]
[1762787531882,0.00014362,105380.0,105370.0,0.30566734]
[1762787532089,0.00014362,105380.0,105370.0,0.11586]
[1762787532314,0.00014362,105380.0,105370.0,0.62966734]
[1762787532526,0.00014362,105380.0,105370.0,0.71026506]
[1762787532942,0.01753876,105380.0,105370.0,0.71026506]
[1762787533155,0.01753876,105380.0,105370.0,0.62966734]
[1762787533415,0.01753876,105380.0,105370.0,0.30666734]
[1762787533605,0.01753876,105380.0,105370.0,0.11686]
[1762787534071,0.03753876,105380.0,105370.0,0.11686]
[1762787534506,0.03753876,105380.0,105370.0,0.30666734]
[1762787534725,0.01753876,105380.0,105370.0,0.30666734]
[1762787536014,0.01753876,105380.0,105370.0,0.80695915]
[1762787536231,0.00014362,105380.0,105370.0,0.80695915]
[1762787537377,0.00014362,105380.0,105370.0,1.22806088]
[1762787537865,0.00014362,105380.0,105370.0,1.22906088]
[1762787538108,0.00014362,105380.0,105370.0,0.72776907]
[1762787538310,0.00014362,105380.0,105370.0,1.12895915]
[1762787538597,0.00014362,105380.0,105370.0,1.13395915]
[1762787541190,0.00014362,105380.0,105370.0,1.2041797]
[1762787541191,3.62e-06,105380.0,105370.0,1.2041797]
[1762787541456,0.00205216,105400.0,105390.0,0.18977132]
[1762787541653,0.00205216,105400.0,105390.0,0.75129313]
[1762787542063,0.00205216,105400.0,105390.0,0.80918313]
[1762787542717,0.00205216,105400.0,105390.0,0.81118313]
[1762787542939,0.00205216,105400.0,105390.0,0.88323404]
[1762787543166,0.00205216,105400.0,105390.0,1.30433577]
[1762787544296,0.00205216,105400.0,105390.0,1.30633577]
[1762787544714,0.00205216,105400.0,105390.0,1.34025884]
[1762787546244,0.00205216,105400.0,105390.0,1.33825884]
[1762787546463,0.00205216,105400.0,105390.0,1.30433577]
[1762787546675,0.00205216,105400.0,105390.0,1.30733577]
[1762787546883,0.00205216,105400.0,105390.0,1.20923404]
[1762787547095,0.00205216,105400.0,105390.0,1.20723404]
[1762787547309,0.00205216,105400.0,105390.0,1.21023404]
[1762787548009,0.00205216,105400.0,105390.0,0.31489132]
[1762787548215,0.02205216,105400.0,105390.0,0.12189]
[1762787548455,0.02205216,105400.0,105390.0,0.31166132]
[1762787548456,0.03940081,105400.0,105390.0,0.31166132]
[1762787548866,0.03940081,105400.0,105390.0,0.12189]
[1762787549078,0.03940081,105400.0,105390.0,0.121999]
[1762787549326,0.03940081,105400.0,105390.0,0.118999]
[1762787549531,0.03940081,105400.0,105390.0,0.30877032]
[1762787549736,0.01940081,105400.0,105390.0,0.80906213]
[1762787550370,0.01940081,105400.0,105390.0,0.80606213]
[1762787550597,0.01940081,105400.0,105390.0,1.19929843]
[1762787550811,0.00205216,105400.0,105390.0,1.20029843]
[1762787551028,0.00205216,105400.0,105390.0,1.2342215]
[1762787551253,0.00205216,105400.0,105390.0,1.33332323]
[1762787551467,0.08620009,105440.0,105420.0,0.18970222]
[1762787551684,0.13271598,105440.0,105430.0,0.24640932]
[1762787551902,0.13271598,105440.0,105430.0,0.05671]
[1762787552119,0.02,105430.0,105420.0,0.02154]
[1762787552326,0.06622761,105430.0,105420.0,0.02154]
[1762787552571,0.16384843,105430.0,105410.0,0.02154]
[1762787552787,0.02,105420.0,105410.0,0.0762]
[1762787553010,0.03735761,105420.0,105410.0,0.02154]
[1762787553220,0.03735761,105420.0,105410.0,0.05671]
[1762787553633,0.04604199,105420.0,105410.0,0.05671]
[1762787554297,0.04604199,105420.0,105410.0,0.02154]
[1762787554521,0.02,105400.0,105390.0,0.021859]
[1762787554742,0.02604199,105400.0,105390.0,0.057029]
[1762787556067,0.02604199,105400.0,105390.0,0.059029]
[1762787556282,0.02604199,105400.0,105390.0,0.30346032]
[1762787556716,0.02604199,105400.0,105390.0,0.30446032]
[1762787557148,0.02604199,105400.0,105390.0,0.114689]
[1762787557356,0.04604199,105400.0,105390.0,0.060029]
[1762787557568,0.12247319,105400.0,105390.0,0.003109]
[1762787557760,0.14247319,105400.0,105390.0,0.003109]
[1762787558040,0.05353319,105400.0,105390.0,0.003109]
[1762787558216,0.04604199,105400.0,105390.0,0.038279]
[1762787558589,0.02604199,105400.0,105390.0,0.30168745]